Cogmind - Beta 11 @@@ ROGUE MODE // 2022.03.25 @ 21:28:05 Player: Red Box Result: Destroyed by as-88227 with Assembled Rifle Performance ------------- Evolutions (0) 0 Regions Visited (2) 400 Robots Destroyed (24) 120 Value Destroyed (611) 611 Prototype IDs (3) 60 Alien Tech Used (0) 0 Bonus (0) 0 TOTAL SCORE: 1191 Bonus ------- None Cogmind --------- Core Integrity 0/250 Matter 261/300 Energy 100/100 System Corruption 6% Temperature Cool (0) Movement Rolling (115) Ox1 Location -10/Mines Parts ------- > --- POWER (1) -------- (None) > --- PROPULSION (2) --- Compact Wheel Compact Wheel > --- UTILITY (2) ------ High-capacity Storage Unit > --- WEAPON (2) ------- Light Cannon > --- INVENTORY (20) --- Compact Wheel Improved Hover Unit Improved Hover Unit Improved Hover Unit Improved Hover Unit Improved Heat Sink Large Matter Pod (125) Advanced Weight Redist. System Improved Terrain Scanner Improved Terrain Scan Processor Improved Propulsion Shielding Hardened Light Armor Plating Hardened Light Armor Plating Beam Cannon Light Cannon Light Cannon Light Cannon Flak Cannon Grenade Launcher Mining Laser Peak State ------------ > --- POWER ------------ Light Nuclear Core > --- PROPULSION ------- Compact Wheel Compact Wheel > --- UTILITY ---------- Improved Heat Sink High-capacity Storage Unit > --- WEAPON ----------- Particle Gun Beam Cannon > --- INVENTORY -------- Aluminum Leg Aluminum Leg Compact Wheel Compact Wheel Hover Unit Hover Unit Improved Hover Unit Improved Hover Unit Improved Hover Unit Improved Hover Unit Medium Storage Unit Large Storage Unit High-capacity Battery Visual Processing Unit Targeting Computer Light Armor Plating Assault Rifle Light Cannon Grenade Launcher [Rating: 14] Favorites ----------- Power Light Nuclear Core Engine Light Ion Engine Power Core Light Nuclear Core Propulsion Compact Wheel Leg Aluminum Leg Wheel Compact Wheel Utility High-capacity Storage Unit Device Improved Heat Sink Storage High-capacity Storage Unit Processor Targeting Computer Weapon Small Laser Energy Gun Small Laser Energy Cannon Beam Cannon Ballistic Gun Assault Rifle Ballistic Cannon Light Cannon Build | -11 -10 -10 ------- Run | Scr Mat Min Slots Evolved . | . . . Power . | . . . Propulsion . | . . . Utility . | . . . Weapon . | . . . Parts Attached 40 | 7 29 4 Power 4 | 1 2 1 Engine 3 | 1 1 1 Core 1 | . 1 . Reactor . | . . . Propulsion 15 | 2 12 1 Treads . | . . . Leg 9 | 2 7 . Wheel 6 | . 5 1 Hover . | . . . Flight . | . . . Utility 8 | 2 6 . Device 3 | 1 2 . Storage 4 | 1 3 . Processor 1 | . 1 . Hackware . | . . . Protection . | . . . Artifact . | . . . Weapon 13 | 2 9 2 Energy Gun 7 | 2 5 . Energy Cannon 1 | . 1 . Ballistic Gun 1 | . 1 . Ballistic Cannon 4 | . 2 2 Launcher . | . . . Special Weapon . | . . . Impact Weapon . | . . . Slashing Weapon . | . . . Piercing Weapon . | . . . Special Melee Weapon . | . . . Unidentified Prototypes . | . . . Parts Lost 5 | . 2 3 Power 2 | . 1 1 Propulsion . | . . . Utility 1 | . . 1 Weapon 2 | . 1 1 Highest Loss Streak 3 | . 1 3 To Critical Strikes . | . . . Average Slot Usage (%) 98 | . 98 100 Engine 5 | . 4 14 Core 7 | . 8 . Leg 9 | . 10 . Wheel 18 | . 17 28 Device 10 | . 11 . Storage 14 | . 14 14 Processor 3 | . 2 14 Energy Gun 19 | . 20 . Ballistic Cannon 7 | . 5 28 Naked Turns . | . . . Heaviest Build 55 | 11 52 55 Greatest Support 32 | 20 32 32 Greatest Overweight (x) 1 | . 1 1 Average Overweight (x) . | . . 1 Largest Inventory Capacity 20 | 8 20 20 Average Capacity 15 | 7 15 20 Most Carried 20 | 7 20 20 Average Carried 13 | 4 13 19 Final Capacity 20 | 8 20 20 Final Carried 20 | 7 20 20 Class Distribution -------------------- 62% | Mutant 37% | Scavenger-Mutant Dominant Class ---------------- Mutant | -10/Materials Mutant | -10/Mines Resources | -11 -10 -10 ----------- Run | Scr Mat Min Matter Collected 762 | 246 450 66 Remotely . | . . . Salvage Created 740 | 52 638 50 Parts 37 | 2 31 4 Haulers Intercepted 2 | . 2 . Recyclers Shooed . | . . . Parts Field Recycled . | . . . Retrieved Matter . | . . . Parts Self-Destructed . | . . . Prevented . | . . . Kills | -11 -10 -10 ------- Run | Scr Mat Min Combat Hostiles Destroyed 18 | . 15 3 Guns 14 | . 14 . Cannons 3 | . . 3 Classes Destroyed 6 | 1 4 1 Tunneler 2 | 2 . . Hauler 2 | . 2 . Watcher 3 | . 3 . Swarmer 3 | . 3 . Grunt 14 | . 12 2 Assembled 1 | . . 1 Best Kill Streak 3 | 2 3 2 Combat Bots Only 3 | . 3 2 Max Kills in Single Turn 1 | 1 1 1 Gunslinging . | . . . Exploded . | . . . Melee . | . . . Uniques/NPCs Destroyed . | . . . Combat | -11 -10 -10 -------- Run | Scr Mat Min Damage Taken 1256 | . 643 613 Core 251 | . 110 141 Absorbed by Shields . | . . . Regen/Repaired (Parts) 55 | . 55 . Core Remaining (%) 100 | 100 . . Volleys Fired 102 | 4 89 9 Largest 2 | 2 2 2 Hottest 105 | 80 105 70 Shots Fired 203 | 8 177 18 Gun 183 | 8 175 . Cannon 20 | . 2 18 Launcher . | . . . Special . | . . . Kinetic 27 | . 9 18 Thermal 176 | 8 168 . Explosive . | . . . Electromagnetic . | . . . Robot Hit Streak 23 | 7 23 10 Robot Miss Streak 7 | . 7 3 Penetration Max . | . . . Secondary Targets 1 | . 1 . Max Gunslinging Chain 1 | . 1 . Shots Hit Robots 135 | 7 115 13 Core Hits 40 | 2 33 5 Critical Kills . | . . . Critical Parts Destroyed . | . . . Critical Strikes 7 | . 7 . Burn 7 | . 7 . Melee Attacks . | . . . Impact . | . . . Slashing . | . . . Piercing . | . . . Sneak Attacks . | . . . Combat Hostiles . | . . . Follow-up Attacks . | . . . Damage Inflicted 1791 | 74 1505 212 Guns 1545 | 74 1471 . Cannons 246 | . 34 212 Explosions . | . . . Melee . | . . . Ramming . | . . . Kinetic 327 | . 115 212 Thermal 1464 | 74 1390 . Explosive . | . . . Electromagnetic . | . . . Impact . | . . . Slashing . | . . . Piercing . | . . . Highest Corruption 6 | . . 6 Average Corruption 6 | . . 6 Corruption Purged . | . . . Corruption Blocked . | . . . Overload Shots . | . . . Overflow Damage . | . . . Projectiles . | . . . Explosions . | . . . Melee . | . . . Knockbacks 4 | . . 4 Impact . | . . . Kinetic 4 | . . 4 Secondary . | . . . Self-Inflicted Damage . | . . . Shots . | . . . Rammed . | . . . Targets Rammed . | . . . Kicked . | . . . Crushed . | . . . Highest Temperature 336 | 54 336 120 Average Temperature 66 | 28 69 50 Received Heat Transfer 387 | . 312 75 Effects 3 | . 3 . Shutdowns 1 | . 1 . Interference 2 | . 2 . Siege Activations . | . . . Robots Corrupted . | . . . Combat Hostiles . | . . . Parts Fried . | . . . Impact Corruptions . | . . . Robots Melted 1 | . 1 . Combat Hostiles 1 | . 1 . Parts Melted 13 | 2 11 . Heat Transferred 4016 | 175 3841 . Parts Sabotaged . | . . . Parts Stolen . | . . . Parts Stripped . | . . . Power Chain Reactions . | . . . Missiles Intercepted . | . . . Alert | -11 -10 -10 ------- Run | Scr Mat Min Peak Influence 180 | 10 180 99 Initial 6 | . 6 4 Average 57 | 2 57 76 Maximum Alert Level . | . . . Low Security (%) 100 | 100 100 100 Level 1 . | . . . Level 2 . | . . . Level 3 . | . . . Level 4 . | . . . Level 5 . | . . . High Security . | . . . Max Security . | . . . Squads Dispatched 3 | . 3 . Investigation 2 | . 2 . Extermination . | . . . Reinforcement 1 | . 1 . Assault . | . . . Garrison . | . . . Intercept . | . . . Searches Triggered . | . . . Construction Impeded . | . . . Haulers Reinforced . | . . . Active Scanning Responses . | . . . Cargo Convoy Interrupts . | . . . Stealth | -11 -10 -10 --------- Run | Scr Mat Min Distress Signals 1 | . 1 . Communications Jammed . | . . . Distress Signals . | . . . Times Spotted 47 | . 27 20 Peak Tracking Total 13 | . 4 13 Tactical Retreats 2 | . 1 1 Traps | -11 -10 -10 ------- Run | Scr Mat Min Traps Triggered 1 | . 1 . Indirectly . | . . . Trap Hack Attempts . | . . . Triggered . | . . . Disarmed . | . . . Reprogrammed . | . . . Reused . | . . . Traps Extracted . | . . . Installed . | . . . Triggered . | . . . Machines | -11 -10 -10 ---------- Run | Scr Mat Min Machines Disabled 1 | . 1 . Max in Single Turn 1 | . 1 . Machines Sabotaged . | . . . Garrisons Compromised . | . . . Overloaded Fab Kills . | . . . Hacking | -11 -10 -10 --------- Run | Scr Mat Min Machines Accessed 10 | . 9 1 Terminals 6 | . 6 . Fabricators . | . . . Repair Stations 1 | . 1 . Recycling Units 2 | . 2 . Scanalyzers . | . . . Garrison Access . | . . . Total Hacks 33 | . 32 1 Successful 25 | . 24 1 Failed 8 | . 8 . Catastrophic 1 | . 1 . Database Lockouts . | . . . Manual 14 | . 14 . Terminals 22 | . 22 . Fabricators . | . . . Repair Stations 6 | . 6 . Recycling Units 4 | . 4 . Scanalyzers . | . . . Garrison Access . | . . . Terminal Hacks 9 | . 8 1 Robot Analysis 2 | . 2 . Prototype ID Bank 2 | . 2 . Open Door 1 | . . 1 Emergency Access Points 1 | . 1 . Terminal Index 1 | . 1 . Locate Traps 1 | . 1 . Zone Layout 1 | . 1 . Fabricator Hacks . | . . . Repair Station Hacks 6 | . 6 . Scan Component 3 | . 3 . Repair 3 | . 3 . Recycling Unit Hacks 1 | . 1 . Retrieve Components 1 | . 1 . Scanalyzer . | . . . Garrison Access Hacks . | . . . Unauthorized Hacks 9 | . 9 . Terminals 7 | . 7 . Track 1 | . 1 . Botnet 5 | . 5 . Operators 1 | . 1 . Fabricators . | . . . Repair Stations . | . . . Recycling Units 2 | . 2 . Reject 1 | . 1 . Tunnel 1 | . 1 . Scanalyzers . | . . . Garrison Access . | . . . Data Cores Recovered . | . . . Used . | . . . Hacking Detections 7 | . 7 . Full Trace Events . | . . . Feedback Events . | . . . Feedback Blocked . | . . . Robot Schematics Acquired . | . . . Robots Built . | . . . Authchips . | . . . Time . | . . . Total Robot Build Rating . | . . . Part Schematics Acquired . | . . . Parts Built . | . . . Authchips . | . . . Time . | . . . Total Part Build Rating . | . . . Parts Repaired 3 | . 3 . Time 90 | . 90 . Parts Recycled . | . . . Recycled Matter . | . . . Retrieved Matter . | . . . Retrieved Components 2 | . 2 . Parts Scanalyzed . | . . . Part Schematics Acquired . | . . . Parts Damaged . | . . . Bothacking | -11 -10 -10 ------------ Run | Scr Mat Min Used RIF Installer . | . . . Robots Hacked . | . . . Non-combat . | . . . Combat . | . . . Robot Hacks Applied . | . . . Relay Couplers Released . | . . . Fabnet Peak Effective % . | . . . Robots Rewired . | . . . Allies Hacked . | . . . Hacks Repelled . | . . . Allies | -11 -10 -10 -------- Run | Scr Mat Min Total Allies . | . . . Largest Group . | . . . Highest-Rated Group . | . . . Highest-Rated Ally . | . . . Total Orders . | . . . Ally Attacks . | . . . Total Damage . | . . . Kills . | . . . Allies Corrupted . | . . . Allies Melted . | . . . Intel | -11 -10 -10 ------- Run | Scr Mat Min Robot Analysis Total 2 | . 2 . Derelict Logs Recovered 1 | . . 1 Drone Launches . | . . . Drone Recoveries . | . . . Exploration | -11 -10 -10 ------------- Run | Scr Mat Min Turns Passed 2787 | 86 2492 209 Spaces Moved 1633 | 52 1448 133 Core 8 | 8 . . Treads . | . . . Legs 584 | 44 540 . Wheels 1041 | . 908 133 Hover . | . . . Flight . | . . . Fastest Speed 50 | 50 115 115 Average Speed 116 | 109 116 115 Slowest Speed 120 | 120 120 115 Overloaded Moves . | . . . Propulsion Burnouts . | . . . Robots Hopped . | . . . Cave-ins Triggered 1 | . . 1 Exploration Rate (%) 47 | 3 99 39 Regions Visited 2 Branch Regions 1 Pre-discovered Areas 1 | . 1 . Known Exits Taken . | . . . Unknown Exits Taken 2 | 1 1 . Scrap Searched . | . . . Spaces Dug . | . . . Terrain Destroyed . | . . . Melee . | . . . Projectile . | . . . AOE . | . . . Terrain Rammed . | . . . Walls Destroyed . | . . . Machines Disabled . | . . . Actions | -11 -10 -10 --------- Run | Scr Mat Min Total 2320 | 69 2079 172 Wait 447 | . 433 14 Move 1631 | 51 1447 133 Hop . | . . . Pick Up 57 | 7 44 6 Fast Attach 14 | 7 7 . Attach 4 | . 4 . Detach . | . . . Swap 22 | . 18 4 Drop 43 | . 37 6 Fire 102 | 4 89 9 Melee . | . . . Ram . | . . . Kick . | . . . Crush . | . . . Escape Stasis . | . . . Rewire . | . . . Trap . | . . . Miscellaneous . | . . . Route ------- -11/Scrapyard -10/Materials (discovered 4 exits: [*Mat x3] / *Min) -10/Mines History --------- Turn | Location | Event 5 | -11/Scrapyard | Discovered new exit (range 16) 87 | -11/Scrapyard | Entered Materials 311 | -10/Materials | Discovered new exit (range 5) 318 | -10/Materials | Build established: Mutant 625 | -10/Materials | Discovered new exit (range 11) 770 | -10/Materials | Discovered new exit (range 16) 1128 | -10/Materials | Discovered new exit (range 8) 1130 | -10/Materials | Build established: Scavenger-Mutant 2164 | -10/Materials | Build established: Mutant 2371 | -10/Materials | Repaired Imp. Heat Sink 2419 | -10/Materials | Repaired Grenade Launcher 2446 | -10/Materials | Repaired Com. Wheel 2579 | -10/Materials | Entered Mines 2591 | -10/Mines | Learned location of 1 exit from Materials 2641 | -10/Mines | Core integrity fell below 50% 2684 | -10/Mines | Met a Derelict who couldn't figure out how to use a Trap Extractor 2742 | -10/Mines | Assembled infested the area 2787 | -10/Mines | Crushed by falling debris 2787 | -10/Mines | Core integrity fell below 20% 2788 | -10/Mines | Destroyed by as-88227 with Assembled Rifle Last Messages --------------- 02742_ ALERT: Infestation in the mines, dispatching Demolisher response squad. 02762_ as-92798 destroyed. 02770_ C-30 ARC bursts open, deploying its payload. 02770_ D-53 Grenadier unfolds itself. 02784_ The unstable cave ceiling collapses. 02785_ as-77709 destroyed. 02787_ The unstable cave ceiling collapses. 02787_ Crushed by falling debris. 02787_ Deuterium Engine destroyed. 02787_ System corrupted by crushing effect (+4). 02787_ Targeting Computer destroyed. 02787_ System corrupted by crushing effect (+1). 02787_ Lgt. Cannon destroyed. 02787_ System corrupted by crushing effect (+1). 02787_ as-10545 destroyed. 02787_ as-32202 destroyed. 02787_ as-74082 destroyed. 02787_ as-83884 destroyed. 02787_ as-55244 destroyed. Map ----- +----------------------------------------------------+ | ???????????????????????????????????????????????? | | ???????????????????????????????????????????????? | | ???????????????????????????????????????????????? | | ????????????????????????????#??????????????????? | | ??????????????????????????## ??????????????????? | | ?????????????????????????? ??????????????????? | | ??????????########???????? ??????????????????? | | ??????????#""""""#???????? ?????????? ??????? | | ??????????#! !] *#???????? ?????????# ??????? | | ??????????##^^!=##????????# ?????????# ??????? | | ???????????# ] *#?????????# #?????????# #####?? | | ??????????###! ############ ##????????# ## ##? | | ?????????## X #??????### # ## | | ?????????# #???#### # | | ?????????# ! ### #### #??# # | | ?????????##### #?# #??# ### # | | ?????????????#### #?# #### ## ? # | | ????????????????# #?# # #????# # | | ????????????????# a######## #?????# | | ????????????????# ## # ## ##?##### | | ????????????????# #### | | ????????????????#a u ## | | ????????????????# aaaa r | | ????????????????# % ## | | ????????????????# # [ = ### | | ????????????????# # @ # * = #### | | ????????????????# # ## ## ##### | | ????????????????# ### ### #### #??# | | ????????????????# #?# ##?## ##??## #??# | | ????????????????# #?## ##???####????## #??# | | ???????????????? #??# #?????????????# #??# | | ???????????????? #?##d#?????????????## #?# | | ????????????????###?## u##??????????????# ## | | ????????????????????# ##?####?????????##### | | ????????????????????# d ## ##????????????### | | ????????????????????# #??????????????? | | ????????????????????## #????????????? | | ?????????????????????##### #????????? | | ?????????????????????????## #??????# | | ??????????????????????????## %#?????# | | ???????????????????????????? #????? | | ???????????????????????????? ???? | | ???????????????????????????? ??? | | ???????????????????????????? ??? ? | | ????????????????????????????# $ ### ??? ? | | ?????????????????????????????######??? ??? ?? | | ????????????????????????????????????????? ?? | | ?????????????????????????????????????????? ???? | | ???????????????????????????????????????????????? | | ???????????????????????????????????????????????? | +----------------------------------------------------+ Best States ------------- Heat Dissipation 39 Energy Generation 14 Energy Capacity 275 Matter Stores 300 Matter Capacity 300 Sight Range 16 Terrain Scan Range 16 Terrain Scan Density 10 Evasion (%) 55 Targeting Accuracy 5 Item Schematics ----------------- None Robot Schematics ------------------ None Fabricated ------------ Nothing Alien Tech Used ----------------- None Achievements -------------- None Challenges ------------ None Game ------ Seed ArcEtherialPod Manual? 0 Play Time 00:25:51 Cumulative 185.8 hours Start 2022.03.25 @ 21:01:19 End 2022.03.25 @ 21:28:05 Sessions 1 Manual Loads 0 Difficulty Rogue Special Mode None Game No. 174 Rogue 174 Adventurer 0 Explorer 0 Win Type - Total 0 Types 0/0/0/0/0/0/0/0/0 Lore% 41 Gallery% 48 Achievement% 36 Wizard Run 0 Options --------- ASCII 0 Keyboard 0 Movement Mouse Keybinds 0 Fullscreen 1 Font 16/SmallcapsGlow Map View 75x55 Tactical HUD 1 Map Filters NONE Filters NONE Steam 1 RUN: bee32852-b4af-48fd-90b7-b67948e03946